fUSD/lending_fUSD_20240628
["ID","MTS","AMOUNT","RATE_DAILY","PERIOD"]
[330532087,1719559839297,-500.0,0.00019178,2]
[330532088,1719559839307,-500.0,0.00019178,2]
[330532089,1719559839318,-500.0,0.00019178,2]
[330532090,1719559839328,-500.0,0.00019178,2]
[330532091,1719559839339,-500.0,0.00019178,2]
[330532092,1719559839349,-1217.26,0.00019178,2]
[330532093,1719559839359,-964.69,0.00019178,2]
[330532094,1719559839368,-706.3,0.00019178,2]
[330532095,1719559839378,-500.0,0.00019178,2]
[330532096,1719559839387,-500.0,0.00019178,2]
[330532097,1719559839397,-571.95,0.00019178,2]
[330532098,1719559839407,-500.0,0.00019178,2]
[330532099,1719559839416,-517.17,0.00019178,2]
[330532100,1719559839426,-307.72906685,0.00019178,2]
[330532101,1719559839435,-767.2,0.00019178,2]
[330532102,1719559839445,-500.0,0.00019178,2]
[330532103,1719559839459,-1115.91,0.00019178,2]
[330532104,1719559839469,-1123.42,0.00019178,2]
[330532105,1719559839478,-1224.28,0.00019178,2]
[330532106,1719559839488,-500.0,0.00019178,2]
[330532107,1719559839499,-1177.32,0.00019178,2]
[330532108,1719559839508,-500.0,0.00019178,2]
[330532109,1719559839518,-500.0,0.00019178,2]
[330532110,1719559839528,-2527.97,0.00019178,2]
[330532111,1719559839540,-500.0,0.00019178,2]
[330532112,1719559839553,-1457.92,0.00019178,2]
[330532113,1719559839563,-500.0,0.00019178,2]
[330532114,1719559839573,-500.0,0.00019178,2]
[330532115,1719559839583,-541.62,0.00019178,2]
[330532116,1719559839594,-500.0,0.00019178,2]
[330532117,1719559839603,-912.51,0.00019178,2]
[330532118,1719559839613,-581.58,0.00019178,2]
[330532119,1719559839622,-500.0,0.00019178,2]
[330532120,1719559839633,-504.29954154,0.00019178,2]
[330532121,1719559839642,-872.53,0.00019178,2]
[330532122,1719559839652,-963.56,0.00019178,2]
[330532123,1719559839661,-864.38,0.00019178,2]
[330532124,1719559839671,-335.81081507,0.00019178,2]
[330532125,1719559839680,-500.0,0.00019178,2]
[330532126,1719559839690,-500.0,0.00019178,2]
[330532127,1719559839699,-990.41,0.00019178,2]
[330532128,1719559839708,-500.0,0.00019178,2]
[330532129,1719559839718,-653.02,0.00019178,2]
[330532130,1719559839729,-699.27,0.00019178,2]
[330532131,1719559839738,-500.0,0.00019178,2]
[330532132,1719559839748,-500.0,0.00019178,2]
[330532133,1719559839757,-299.75935801,0.00019178,2]
[330532134,1719559839767,-1413.66,0.00019178,2]
[330532135,1719559839777,-613.96,0.00019178,2]
[330532136,1719559839786,-795.69,0.00019178,2]
[330532137,1719559839796,-500.0,0.00019178,2]
[330532138,1719559839806,-1063.26,0.00019178,2]
[330532139,1719559839816,-677.18,0.00019178,2]
[330532140,1719559839826,-500.0,0.00019178,2]
[330532141,1719559839836,-500.0,0.00019178,2]
[330532142,1719559839846,-500.0,0.00019178,2]
[330532143,1719559839856,-636.02,0.00019178,2]
[330532144,1719559839866,-930.15,0.00019178,2]
[330532145,1719559839876,-1070.31,0.00019178,2]
[330532146,1719559839886,-500.0,0.00019178,2]
[330532147,1719559839896,-1249.0,0.00019178,2]
[330532148,1719559839906,-500.0,0.00019178,2]
[330532149,1719559839915,-500.0,0.00019178,2]
[330532150,1719559839925,-500.0,0.00019178,2]
[330532151,1719559839936,-500.0,0.00019178,2]
[330532152,1719559839946,-1103.18,0.00019178,2]
[330532153,1719559839956,-650.94,0.00019178,2]
[330532154,1719559839966,-500.0,0.00019178,2]
[330532155,1719559839977,-500.0,0.00019178,2]
[330532156,1719559839987,-1535.49,0.00019178,2]
[330532157,1719559839998,-500.0,0.00019178,2]
[330532158,1719559840008,-500.0,0.00019178,2]
[330532159,1719559840019,-500.0,0.00019178,2]
[330532160,1719559840029,-559.71,0.00019178,2]
[330532161,1719559840045,-847.62,0.00019178,2]
[330532162,1719559840055,-500.0,0.00019178,2]
[330532163,1719559840066,-533.32,0.00019178,2]
[330532164,1719559840076,-500.0,0.00019178,2]
[330532165,1719559840087,-289.57509042,0.00019178,2]
[330532166,1719559840098,-500.0,0.00019178,2]
[330532167,1719559840108,-1519.91,0.00019178,2]
[330532168,1719559840119,-2446.39,0.00019178,2]
[330532169,1719559840129,-500.0,0.00019178,2]
[330532170,1719559840141,-500.0,0.00019178,2]
[330532171,1719559840152,-500.0,0.00019178,2]
[330532172,1719559840162,-775.82,0.00019178,2]
[330532173,1719559840173,-869.1,0.00019178,2]
[330532174,1719559840183,-1122.88,0.00019178,2]
[330532175,1719559840194,-1525.35,0.00019178,2]
[330532176,1719559840204,-929.7,0.00019178,2]
[330532177,1719559840215,-788.34,0.00019178,2]
[330532178,1719559840225,-500.0,0.00019178,2]
[330532179,1719559840235,-500.0,0.00019178,2]
[330532180,1719559840247,-500.0,0.00019178,2]
[330532181,1719559840257,-500.0,0.00019178,2]
[330532183,1719559840267,-1325.31,0.00019178,2]
[330532187,1719559840278,-500.0,0.00019178,2]
[330532189,1719559840289,-1161.99,0.00019178,2]
[330532191,1719559840299,-500.0,0.00019178,2]
[330532192,1719559840309,-500.0,0.00019178,2]
[330532193,1719559840320,-662.22,0.00019178,2]
[330532194,1719559840331,-500.0,0.00019178,2]
[330532195,1719559840341,-500.0,0.00019178,2]
[330532196,1719559840351,-500.0,0.00019178,2]
[330532197,1719559840362,-500.0,0.00019178,2]
[330532198,1719559840372,-500.0,0.00019178,2]
[330532199,1719559840382,-1053.93,0.00019178,2]
[330532200,1719559840392,-500.0,0.00019178,2]
[330532201,1719559840403,-500.0,0.00019178,2]
[330532202,1719559840414,-961.23,0.00019178,2]
[330532203,1719559840424,-584.45,0.00019178,2]
[330532204,1719559840434,-500.0,0.00019178,2]
[330532205,1719559840444,-500.0,0.00019178,2]
[330532206,1719559840457,-1395.9,0.00019178,2]
[330532207,1719559840467,-724.49,0.00019178,2]
[330532208,1719559840477,-500.0,0.00019178,2]
[330532209,1719559840487,-500.0,0.00019178,2]
[330532210,1719559840498,-500.0,0.00019178,2]
[330532211,1719559840509,-475.17649513,0.00019178,2]
[330532212,1719559840519,-660.88,0.00019178,2]
[330532213,1719559840529,-500.0,0.00019178,2]
[330532214,1719559840542,-2104.33,0.00019178,2]
[330532215,1719559840555,-500.0,0.00019178,2]
[330532216,1719559840571,-500.0,0.00019178,2]
[330532217,1719559840582,-500.0,0.00019178,2]
[330532218,1719559840594,-500.0,0.00019178,2]
[330532219,1719559840604,-500.0,0.00019178,2]
[330532220,1719559840614,-500.0,0.00019178,2]
[330532221,1719559840625,-567.74,0.00019178,2]
[330532222,1719559840636,-500.0,0.00019178,2]
[330532223,1719559840647,-500.0,0.00019178,2]
[330532224,1719559840658,-500.0,0.00019178,2]
[330532225,1719559840668,-500.0,0.00019178,2]
[330532226,1719559840678,-500.0,0.00019178,2]
[330532227,1719559840688,-1262.59,0.00019178,2]
[330532228,1719559840699,-500.0,0.00019178,2]
[330532229,1719559840710,-1379.3,0.00019178,2]
[330532230,1719559840720,-500.0,0.00019178,2]
[330532231,1719559840729,-500.0,0.00019178,2]
[330532232,1719559840739,-1616.83,0.00019178,2]
[330532233,1719559840749,-1416.01,0.00019178,2]
[330532234,1719559840759,-500.0,0.00019178,2]
[330532235,1719559840769,-500.0,0.00019178,2]
[330532236,1719559840778,-500.0,0.00019178,2]
[330532237,1719559840788,-1344.45,0.00019178,2]
[330532238,1719559840798,-500.0,0.00019178,2]
[330532239,1719559840808,-500.0,0.00019178,2]
[330532241,1719559840818,-1585.82,0.00019178,2]
[330532243,1719559840827,-500.21,0.00019178,2]
[330532244,1719559840838,-500.0,0.00019178,2]
[330532246,1719559840848,-500.0,0.00019178,2]
[330532248,1719559840858,-500.0,0.00019178,2]
[330532249,1719559840868,-500.0,0.00019178,2]
[330532250,1719559840878,-658.48,0.00019178,2]
[330532251,1719559840887,-500.0,0.00019178,2]
[330532252,1719559840898,-500.0,0.00019178,2]
[330532253,1719559840908,-517.97,0.00019178,2]
[330532254,1719559840918,-1490.17,0.00019178,2]
[330532255,1719559840927,-500.0,0.00019178,2]
[330532256,1719559841380,-500.0,0.00019178,2]
[330532257,1719559841393,-564.79,0.00019178,2]
[330532258,1719559841403,-641.27,0.00019178,2]
[330532259,1719559841414,-500.0,0.00019178,2]
[330532260,1719559841423,-500.0,0.00019178,2]
[330532261,1719559841432,-735.3,0.00019178,2]
[330532262,1719559841441,-500.0,0.00019178,2]
[330532263,1719559841451,-500.0,0.00019178,2]
[330532264,1719559841466,-500.0,0.00019178,2]
[330532265,1719559841475,-665.47,0.00019178,2]
[330532266,1719559841485,-500.0,0.00019178,2]
[330532267,1719559841495,-500.0,0.00019178,2]
[330532268,1719559841505,-500.0,0.00019178,2]
[330532269,1719559841514,-500.0,0.00019178,2]
[330532270,1719559841525,-500.0,0.00019178,2]
[330532271,1719559841536,-963.54,0.00019178,2]
[330532272,1719559841545,-500.0,0.00019178,2]
[330532273,1719559841557,-1353.53,0.00019178,2]
[330532274,1719559841567,-500.0,0.00019178,2]
[330532275,1719559841576,-500.0,0.00019178,2]
[330532276,1719559841585,-811.05,0.00019178,2]
[330532277,1719559841595,-725.07,0.00019178,2]
[330532278,1719559841616,-500.0,0.00019178,2]
[330532279,1719559841626,-522.99,0.00019178,2]
[330532280,1719559841636,-500.0,0.00019178,2]
[330532281,1719559841646,-568.47,0.00019178,2]
[330532282,1719559841656,-500.0,0.00019178,2]
[330532283,1719559841666,-500.0,0.00019178,2]
[330532284,1719559841676,-20942.9,0.00019178,2]
[330532285,1719559841686,-847.98,0.00019178,2]
[330532286,1719559841695,-500.0,0.00019178,2]
[330532287,1719559841705,-682.54,0.00019178,2]
[330532288,1719559841715,-824.31,0.00019178,2]
[330532289,1719559841724,-630.75,0.00019178,2]
[330532290,1719559841735,-500.0,0.00019178,2]
[330532291,1719559841744,-780.81,0.00019178,2]
[330532292,1719559841754,-2099.9,0.00019178,2]
[330532293,1719559841763,-500.0,0.00019178,2]
[330532294,1719559841772,-887.27,0.00019178,2]
[330532295,1719559841782,-500.0,0.00019178,2]
[330532296,1719559841791,-521.61704176,0.00019178,2]
[330532297,1719559841801,-500.0,0.00019178,2]
[330532298,1719559841811,-500.0,0.00019178,2]
[330532299,1719559841822,-1046.53,0.00019178,2]
[330532300,1719559841833,-1156.09,0.00019178,2]
[330532301,1719559841842,-500.0,0.00019178,2]
[330532302,1719559841851,-581.79,0.00019178,2]
[330532303,1719559841861,-500.0,0.00019178,2]
[330532304,1719559841870,-500.0,0.00019178,2]
[330532305,1719559841880,-500.0,0.00019178,2]
[330532306,1719559841891,-1260.26,0.00019178,2]
[330532307,1719559841900,-500.0,0.00019178,2]
[330532308,1719559841910,-500.0,0.00019178,2]
[330532309,1719559841919,-500.0,0.00019178,2]
[330532310,1719559841929,-773.41,0.00019178,2]
[330532311,1719559841939,-634.25,0.00019178,2]
[330532312,1719559841951,-686.79,0.00019178,2]
[330532313,1719559841962,-4413.59,0.00019178,2]
[330532314,1719559841972,-509.0,0.00019178,2]
[330532315,1719559841982,-500.0,0.00019178,2]
[330532316,1719559841992,-500.0,0.00019178,2]
[330532317,1719559842004,-634.61397835,0.00019178,2]
[330532318,1719559842014,-4194.65,0.00019178,2]
[330532319,1719559842024,-500.0,0.00019178,2]
[330532320,1719559842034,-500.0,0.00019178,2]
[330532321,1719559842044,-500.0,0.00019178,2]
[330532322,1719559842054,-768.14,0.00019178,2]
[330532323,1719559842063,-500.0,0.00019178,2]
[330532324,1719559842074,-966.02,0.00019178,2]
[330532325,1719559842084,-1041.56,0.00019178,2]
[330532326,1719559842096,-500.0,0.00019178,2]
[330532327,1719559842105,-9811.99,0.00019178,2]
[330532328,1719559842115,-500.0,0.00019178,2]
[330532329,1719559842125,-500.0,0.00019178,2]
[330532330,1719559842134,-406.49446964,0.00019178,2]
[330532331,1719559842144,-500.0,0.00019178,2]
[330532332,1719559842154,-577.02010255,0.00019178,2]
[330532333,1719559842164,-500.0,0.00019178,2]
[330532334,1719559842174,-500.0,0.00019178,2]
[330532335,1719559842184,-500.0,0.00019178,2]
[330532336,1719559842194,-500.0,0.00019178,2]
[330532337,1719559842206,-500.0,0.00019178,2]
[330532338,1719559842216,-500.0,0.00019178,2]
[330532339,1719559842227,-500.0,0.00019178,2]
[330532340,1719559842237,-500.0,0.00019178,2]
[330532341,1719559842246,-619.47145056,0.00019178,2]
[330532342,1719559842256,-500.0,0.00019178,2]
[330532343,1719559842266,-500.0,0.00019178,2]
[330532344,1719559842276,-500.0,0.00019178,2]
[330532345,1719559842287,-500.0,0.00019178,2]
[330532346,1719559842296,-500.0,0.00019178,2]
[330532347,1719559842306,-500.0,0.00019178,2]
[330532348,1719559842317,-500.0,0.00019178,2]
[330532349,1719559842327,-500.0,0.00019178,2]
[330532350,1719559842336,-500.0,0.00019178,2]
[330532351,1719559842346,-500.0,0.00019178,2]
[330532352,1719559842355,-500.0,0.00019178,2]
[330532353,1719559842365,-500.0,0.00019178,2]
[330532354,1719559842375,-500.0,0.00019178,2]
[330532355,1719559842386,-500.0,0.00019178,2]
[330532356,1719559842396,-500.0,0.00019178,2]
[330532357,1719559842406,-532.07586993,0.00019178,2]
[330532358,1719559842416,-500.0,0.00019178,2]
[330532359,1719559842427,-500.0,0.00019178,2]
[330532360,1719559842437,-500.0,0.00019178,2]
[330532361,1719559842447,-638.78,0.00019178,2]
[330532362,1719559842461,-755.05,0.00019178,2]
[330532363,1719559842471,-2197.64,0.00019178,2]
[330532364,1719559842481,-743.36,0.00019178,2]
[330532365,1719559842491,-845.64,0.00019178,2]
[330532366,1719559842503,-500.0,0.00019178,2]
[330532367,1719559842512,-1102.3,0.00019178,2]
[330532368,1719559842522,-880.92,0.00019178,2]
[330532369,1719559842533,-500.0,0.00019178,2]
[330532370,1719559842543,-500.0,0.00019178,2]
[330532371,1719559842554,-500.0,0.00019178,2]
[330532372,1719559842564,-500.0,0.00019178,2]
[330532373,1719559842576,-1499.44,0.00019178,2]
[330532374,1719559842586,-500.0,0.00019178,2]
[330532375,1719559842596,-500.0,0.00019178,2]
[330532376,1719559842606,-529.41,0.00019178,2]
[330532377,1719559842615,-500.0,0.00019178,2]
[330532378,1719559842624,-569.94,0.00019178,2]
[330532379,1719559842633,-65214.79,0.00019178,2]
[330532380,1719559842643,-500.0,0.00019178,2]
[330532381,1719559842652,-500.0,0.00019178,2]
[330532382,1719559842662,-500.0,0.00019178,2]
[330532383,1719559842671,-500.0,0.00019178,2]
[330532384,1719559842681,-500.0,0.00019178,2]
[330532385,1719559842690,-500.0,0.00019178,2]
[330532386,1719559842699,-2191.72,0.00019178,2]
[330532387,1719559842708,-823.43,0.00019178,2]
[330532388,1719559842718,-1218.43,0.00019178,2]
[330532389,1719559842727,-500.0,0.00019178,2]
[330532390,1719559842737,-614.88,0.00019178,2]
[330532391,1719559842746,-1339.19,0.00019178,2]
[330532392,1719559842756,-247.15537905,0.00019178,2]
[330532393,1719559842765,-45921.13,0.00019178,2]
[330532394,1719559842775,-601.46,0.00019178,2]
[330532395,1719559842785,-500.0,0.00019178,2]
[330532396,1719559842795,-1735.9,0.00019178,2]
[330532397,1719559842804,-500.0,0.00019178,2]
[330532398,1719559842813,-500.0,0.00019178,2]
[330532399,1719559842823,-500.0,0.00019178,2]
[330532400,1719559842832,-500.0,0.00019178,2]
[330532401,1719559842841,-500.0,0.00019178,2]
[330532402,1719559842852,-520.2,0.00019178,2]
[330532403,1719559842862,-797.32,0.00019178,2]
[330532404,1719559842872,-627.77,0.00019178,2]
[330532405,1719559842883,-41800.93,0.00019178,2]
[330532406,1719559842893,-1196.92,0.00019178,2]
[330532407,1719559842903,-500.0,0.00019178,2]
[330532408,1719559842912,-500.0,0.00019178,2]
[330532409,1719559842922,-500.0,0.00019178,2]
[330532410,1719559842931,-500.0,0.00019178,2]
[330532411,1719559842941,-500.0,0.00019178,2]
[330532412,1719559842951,-500.0,0.00019178,2]
[330532413,1719559842960,-500.0,0.00019178,2]
[330532414,1719559842969,-581.12,0.00019178,2]
[330532415,1719559842978,-500.0,0.00019178,2]
[330532416,1719559842987,-500.0,0.00019178,2]
[330532417,1719559842996,-4322.55,0.00019178,2]
[330532418,1719559843005,-500.0,0.00019178,2]
[330532419,1719559843015,-630.46,0.00019178,2]
[330532420,1719559843024,-500.0,0.00019178,2]
[330532421,1719559843033,-1784.47,0.00019178,2]
[330532422,1719559843043,-735.38,0.00019178,2]
[330532423,1719559843052,-751.08,0.00019178,2]
[330532424,1719559843062,-2436.84,0.00019178,2]
[330532425,1719559843071,-1049.48,0.00019178,2]
[330532427,1719559843081,-500.0,0.00019178,2]
[330532429,1719559843090,-566.54,0.00019178,2]
[330532432,1719559843100,-545.91,0.00019178,2]
[330532435,1719559843110,-500.0,0.00019178,2]
[330532437,1719559843120,-500.0,0.00019178,2]
[330532440,1719559843131,-500.0,0.00019178,2]
[330532444,1719559843140,-931.7,0.00019178,2]
[330532447,1719559843149,-562.83,0.00019178,2]
[330532450,1719559843159,-500.0,0.00019178,2]
[330532453,1719559843168,-500.0,0.00019178,2]
[330532456,1719559843178,-1011.22,0.00019178,2]
[330532458,1719559843188,-1915.29,0.00019178,2]
[330532461,1719559843198,-1546.04,0.00019178,2]
[330532463,1719559843208,-500.0,0.00019178,2]
[330532465,1719559843218,-500.0,0.00019178,2]
[330532466,1719559843228,-500.0,0.00019178,2]
[330532467,1719559843237,-857.57,0.00019178,2]
[330532468,1719559843247,-500.0,0.00019178,2]
[330532469,1719559843257,-1926.08,0.00019178,2]
[330532470,1719559843267,-1064.99,0.00019178,2]
[330532471,1719559843277,-500.0,0.00019178,2]
[330532472,1719559843287,-500.0,0.00019178,2]
[330532473,1719559843296,-500.0,0.00019178,2]
[330532474,1719559843307,-440.44497741,0.00019178,2]
[330532475,1719559843316,-570.76,0.00019178,2]
[330532476,1719559843325,-500.0,0.00019178,2]
[330532477,1719559843335,-500.0,0.00019178,2]
[330532478,1719559843346,-500.0,0.00019178,2]
[330532479,1719559843356,-657.45,0.00019178,2]
[330532481,1719559843366,-500.0,0.00019178,2]
[330532483,1719559843377,-500.0,0.00019178,2]
[330532485,1719559843388,-1468.42,0.00019178,2]
[330532486,1719559843399,-840.29,0.00019178,2]
[330532487,1719559843410,-500.0,0.00019178,2]
[330532488,1719559843421,-842.85,0.00019178,2]
[330532489,1719559843431,-657.76,0.00019178,2]
[330532490,1719559843441,-500.0,0.00019178,2]
[330532491,1719559843452,-500.0,0.00019178,2]
[330532492,1719559843472,-1453.81,0.00019178,2]
[330532493,1719559843484,-500.0,0.00019178,2]
[330532494,1719559843494,-500.0,0.00019178,2]
[330532495,1719559843504,-500.0,0.00019178,2]
[330532496,1719559843514,-500.0,0.00019178,2]
[330532497,1719559843523,-953.74,0.00019178,2]
[330532498,1719559843533,-643.41,0.00019178,2]
[330532499,1719559843544,-593.38,0.00019178,2]
[330532500,1719559843556,-550.44827691,0.00019178,2]
[330532501,1719559843565,-500.0,0.00019178,2]
[330532502,1719559843575,-842.4,0.00019178,2]
[330532503,1719559843584,-500.0,0.00019178,2]
[330532504,1719559843600,-500.0,0.00019178,2]
[330532505,1719559843609,-617.11,0.00019178,2]
[330532506,1719559843618,-500.0,0.00019178,2]
[330532507,1719559843628,-500.0,0.00019178,2]
[330532508,1719559843638,-908.76,0.00019178,2]
[330532509,1719559843647,-500.0,0.00019178,2]
[330532510,1719559843656,-500.0,0.00019178,2]
[330532511,1719559843665,-532.64549818,0.00019178,2]
[330532512,1719559843674,-923.07,0.00019178,2]
[330532513,1719559843683,-2014.57,0.00019178,2]
[330532514,1719559843692,-500.0,0.00019178,2]
[330532515,1719559843701,-4813.38,0.00019178,2]
[330532516,1719559843710,-4159.81,0.00019178,2]
[330532517,1719559843720,-500.0,0.00019178,2]
[330532518,1719559843729,-500.0,0.00019178,2]
[330532519,1719559843738,-500.0,0.00019178,2]
[330532520,1719559843748,-1137.71,0.00019178,2]
[330532521,1719559843758,-2805.87,0.00019178,2]
[330532522,1719559843767,-2482.58,0.00019178,2]
[330532523,1719559843776,-500.0,0.00019178,2]
[330532524,1719559843788,-810.81,0.00019178,2]
[330532525,1719559843800,-621.43726866,0.00019178,2]
[330532526,1719559843810,-1245.7,0.00019178,2]
[330532527,1719559843820,-6229.75,0.00019178,2]
[330532528,1719559843830,-500.0,0.00019178,2]
[330532529,1719559843840,-500.0,0.00019178,2]
[330532530,1719559843849,-500.0,0.00019178,2]
[330532531,1719559843858,-720.56,0.00019178,2]
[330532532,1719559843867,-500.0,0.00019178,2]
[330532533,1719559843876,-2553.98,0.00019178,2]
[330532534,1719559843885,-500.0,0.00019178,2]
[330532535,1719559843895,-4587.61,0.00019178,2]
[330532536,1719559843904,-500.0,0.00019178,2]
[330532537,1719559843914,-500.0,0.00019178,2]
[330532538,1719559843923,-2972.63,0.00019178,2]
[330532539,1719559843932,-500.0,0.00019178,2]
[330532540,1719559843942,-647.4,0.00019178,2]
[330532541,1719559843951,-533.29,0.00019178,2]
[330532542,1719559843960,-500.0,0.00019178,2]
[330532543,1719559843970,-577.68,0.00019178,2]
[330532544,1719559843979,-500.0,0.00019178,2]
[330532545,1719559843989,-738.71,0.00019178,2]
[330532546,1719559843999,-887.61,0.00019178,2]
[330532547,1719559844008,-613.36,0.00019178,2]
[330532548,1719559844018,-500.0,0.00019178,2]
[330532549,1719559844027,-2430.58,0.00019178,2]
[330532550,1719559844036,-500.0,0.00019178,2]
[330532551,1719559844046,-3072.94,0.00019178,2]
[330532552,1719559844055,-322.45378153,0.00019178,2]
[330532553,1719559844065,-1061.78,0.00019178,2]
[330532554,1719559844075,-2112.44,0.00019178,2]
[330532555,1719559844084,-1434.91,0.00019178,2]
[330532556,1719559844094,-500.0,0.00019178,2]
[330532557,1719559844103,-1220.13,0.00019178,2]
[330532558,1719559844112,-1296.35,0.00019178,2]
[330532559,1719559844122,-642.28,0.00019178,2]
[330532560,1719559844131,-617.85,0.00019178,2]
[330532561,1719559844141,-500.0,0.00019178,2]
[330532562,1719559844150,-1846.61,0.00019178,2]
[330532563,1719559844160,-1292.67,0.00019178,2]
[330532564,1719559844169,-500.0,0.00019178,2]
[330532565,1719559844179,-500.0,0.00019178,2]
[330532566,1719559844189,-503.93,0.00019178,2]
[330532567,1719559844198,-500.0,0.00019178,2]
[330532568,1719559844208,-500.0,0.00019178,2]
[330532569,1719559844218,-1773.24,0.00019178,2]
[330532570,1719559844228,-1816.83,0.00019178,2]
[330532571,1719559844238,-500.0,0.00019178,2]
[330532572,1719559844248,-500.0,0.00019178,2]
[330532573,1719559844258,-505.11,0.00019178,2]
[330532574,1719559844267,-500.0,0.00019178,2]
[330532575,1719559844277,-500.0,0.00019178,2]
[330532576,1719559844289,-1683.3,0.00019178,2]
[330532577,1719559844299,-753.26,0.00019178,2]
[330532578,1719559844309,-776.1,0.00019178,2]
[330532579,1719559844319,-3135.35,0.00019178,2]
[330532580,1719559844328,-500.0,0.00019178,2]
[330532581,1719559844338,-500.0,0.00019178,2]
[330532582,1719559844348,-500.0,0.00019178,2]
[330532583,1719559844358,-500.0,0.00019178,2]
[330532584,1719559844367,-500.0,0.00019178,2]
[330532585,1719559844378,-1349.2,0.00019178,2]
[330532586,1719559844388,-500.0,0.00019178,2]
[330532587,1719559844398,-1425.15,0.00019178,2]
[330532588,1719559844408,-1292.29,0.00019178,2]
[330532589,1719559844418,-500.0,0.00019178,2]
[330532590,1719559844428,-1076.11,0.00019178,2]
[330532591,1719559844438,-1852.21,0.00019178,2]
[330532592,1719559844448,-2281.27,0.00019178,2]
[330532593,1719559844461,-500.0,0.00019178,2]
[330532594,1719559844471,-500.0,0.00019178,2]
[330532595,1719559844481,-2581.0,0.00019178,2]
[330532596,1719559844490,-500.0,0.00019178,2]
[330532597,1719559844502,-500.0,0.00019178,2]
[330532598,1719559844511,-1613.01,0.00019178,2]
[330532599,1719559844521,-500.0,0.00019178,2]
[330532600,1719559844531,-500.0,0.00019178,2]
[330532601,1719559844541,-1082.09,0.00019178,2]
[330532602,1719559844553,-1169.0,0.00019178,2]
[330532603,1719559844562,-500.0,0.00019178,2]
[330532604,1719559844572,-500.0,0.00019178,2]
[330532605,1719559844583,-6914.47,0.00019178,2]
[330532606,1719559844592,-500.0,0.00019178,2]
[330532607,1719559844602,-200.0,0.00019178,2]
[330532608,1719559844612,-500.0,0.00019178,2]
[330532609,1719559844622,-500.0,0.00019178,2]
[330532610,1719559844631,-500.0,0.00019178,2]
[330532611,1719559844641,-500.0,0.00019178,2]
[330532612,1719559844650,-500.0,0.00019178,2]
[330532613,1719559844660,-500.0,0.00019178,2]
[330532614,1719559844670,-1250.59,0.00019178,2]
[330532615,1719559844680,-500.0,0.00019178,2]
[330532616,1719559844689,-1341.5,0.00019178,2]
[330532617,1719559844699,-500.0,0.00019178,2]
[330532618,1719559844708,-500.0,0.00019178,2]
[330532619,1719559844718,-500.0,0.00019178,2]
[330532620,1719559844728,-500.0,0.00019178,2]
[330532621,1719559844737,-981.49,0.00019178,2]
[330532622,1719559844746,-500.0,0.00019178,2]
[330532623,1719559844755,-500.0,0.00019178,2]
[330532624,1719559844764,-500.0,0.00019178,2]